bitfinex/quotes_SOLUSD_20240902
["timestamp","ask_amount","ask_price","bid_price","bid_amount"]
[1725308522116,15.08216872,133.73,133.66,1.49596345]
[1725308523411,15.08216872,133.73,133.71,7.4786]
[1725308523618,15.08216872,133.75,133.72,7.4781]
[1725308524511,15.08216872,133.75,133.71,7.4787]
[1725308525207,15.08216872,133.73,133.66,21.2015]
[1725308525399,45.0,133.72,133.66,21.2015]
[1725308529807,52.4784,133.72,133.66,21.2015]
[1725308530115,22.56106872,133.71,133.67,7.4809]
[1725308532697,15.08216872,133.71,133.68,7.4804]
[1725308535129,45.0,133.7,133.67,7.481]
[1725308547710,45.0,133.7,133.68,7.4805]
[1725308548224,23.0181,133.73,133.69,7.4799]
[1725308548438,38.10026872,133.73,133.69,7.4799]
[1725308550113,52.4784,133.72,133.68,7.4803]
[1725308550307,0.12549,133.68,133.63,6.256]
[1725308550625,15.08216872,133.67,133.59,22.9202]
[1725308550817,22.56336872,133.67,133.63,7.4832]
[1725308552917,22.56336872,133.67,133.59,22.9202]
[1725308552918,52.4805,133.68,133.64,7.4824]
[1725308554332,45.0,133.68,133.65,7.4818]
[1725308555209,22.56216872,133.69,133.65,7.4818]
[1725308557031,15.08216872,133.69,133.66,7.4816]
[1725308559530,22.56216872,133.69,133.66,7.4816]
[1725308562033,15.08216872,133.69,133.66,7.4816]
[1725308562232,7.4796,133.7,133.66,7.4816]
[1725308563933,7.4789,133.71,133.67,7.4809]
[1725308565927,22.56046872,133.72,133.68,7.4803]
[1725308566136,45.0,133.71,133.68,7.4803]
[1725308567839,22.56046872,133.72,133.68,7.4803]
[1725308570236,15.08216872,133.72,133.69,7.4798]
[1725308570543,22.55946872,133.74,133.7,7.4793]
[1725308578856,7.4773,133.74,133.7,7.4793]
[1725308580452,15.08216872,133.71,133.68,7.4803]
[1725308580664,22.56096872,133.71,133.67,7.4808]
[1725308580951,7.60499,133.7,133.66,7.4815]
[1725308581136,45.0,133.69,133.66,7.4815]
[1725308581336,60.08216872,133.69,133.6,50.0]
[1725308581543,15.08216872,133.67,133.6,50.0]
[1725308581856,22.56336872,133.67,133.63,7.4829]
[1725308582353,15.08216872,133.67,133.63,7.4829]
[1725308584963,22.56286872,133.68,133.63,7.4829]
[1725308585145,45.0,133.67,133.63,7.4829]
[1725308591961,45.0,133.67,133.6,50.0]
[1725308592264,22.56286872,133.68,133.64,7.4824]
[1725308594573,45.0,133.67,133.64,7.4824]
[1725308596884,22.56426872,133.66,133.59,6.2372]
[1725308597166,15.08216872,133.64,133.62,7.4837]
[1725308599463,15.08216872,133.64,133.56,80.15846872]
[1725308599659,15.08216872,133.64,133.57,20.0]
[1725308603068,16.4565,133.7,133.58,65.08216872]
[1725308603372,22.56296872,133.68,133.64,7.4826]
[1725308603667,7.4811,133.67,133.63,7.4832]
[1725308603867,15.08216872,133.66,133.63,7.4832]
[1725308604274,7.4811,133.67,133.63,7.4832]
[1725308604565,15.08216872,133.68,133.6,6.0121]
[1725308604761,15.08216872,133.68,133.64,7.4824]
[1725308606252,22.56266872,133.68,133.64,7.4824]
[1725308635190,0.12549,133.69,133.56,72.4534]
[1725308635191,15.08216872,133.66,133.56,72.4534]
[1725308635402,15.08216872,133.64,133.56,22.4534]
[1725308636270,15.08216872,133.62,133.58,7.4856]
[1725308637375,22.56636872,133.62,133.58,7.4856]
[1725308639306,7.4842,133.62,133.58,7.4856]
[1725308639477,0.25098,133.63,133.56,22.4534]
[1725308639478,7.4834,133.63,133.59,7.4855]
[1725308641999,15.08216872,133.64,133.61,7.4843]
[1725308644086,16.1359,133.68,133.58,50.0]
[1725308644282,31.21806872,133.68,133.59,15.08216872]
[1725308645402,7.4812,133.67,133.63,7.4829]
[1725308645606,45.0,133.66,133.63,7.4829]
[1725308649387,0.12549,133.65,133.62,7.4838]
[1725308649591,0.12549,133.65,133.56,22.4534]
[1725308649592,15.08216872,133.64,133.56,22.4534]
[1725308650406,22.56506872,133.64,133.6,7.4846]
[1725308650986,15.08216872,133.62,133.52,22.7105]
[1725308651191,33.7846,133.63,133.53,7.4888]
[1725308651192,7.61179,133.58,133.53,7.4888]
[1725308651695,7.4869,133.57,133.53,7.4888]
[1725308653405,7.61179,133.58,133.53,7.4888]
[1725308654712,7.4868,133.57,133.52,30.1999]
[1725308655598,7.4863,133.58,133.52,30.1999]
[1725308655797,7.4863,133.58,133.53,7.4887]
[1725308658725,7.4857,133.59,133.54,7.4882]
[1725308661706,7.4861,133.58,133.54,7.4882]
[1725308663820,7.4861,133.58,133.51,15.08216872]
[1725308663821,0.12549,133.54,133.45,50.0]
[1725308663997,15.08216872,133.51,133.44,22.248]
[1725308664530,7.491,133.5,133.44,22.248]
[1725308665206,7.4901,133.51,133.44,87.33016872]
[1725308667393,7.4911,133.5,133.44,22.248]
[1725308668019,0.25098,133.52,133.44,22.248]
[1725308668227,0.12549,133.51,133.44,22.248]
[1725308668422,0.12549,133.51,133.43,0.8788857]
[1725308668628,0.12549,133.51,133.43,20.8788857]
[1725308669116,0.12549,133.51,133.43,70.8788857]
[1725308669117,7.4907,133.5,133.43,70.8788857]
[1725308669520,45.25098,133.52,133.43,20.8788857]
[1725308671221,7.4906,133.5,133.43,20.8788857]
[1725308675704,7.4906,133.5,133.43,70.8788857]
[1725308680623,45.25098,133.52,133.44,16.83155115]
[1725308680624,52.4898,133.52,133.44,16.83155115]
[1725308680826,52.4898,133.52,133.44,15.33314872]
[1725308681230,52.4898,133.52,133.44,0.25098]
[1725308681533,7.4901,133.51,133.44,15.33314872]
[1725308688437,6.5867,133.56,133.46,15.08216872]
[1725308688635,7.4859,133.59,133.5,15.08216872]
[1725308688836,15.08216872,133.59,133.5,15.08216872]
[1725308689022,7.4873,133.56,133.49,22.9044]
[1725308689214,7.4878,133.55,133.49,22.9044]
[1725308690035,15.08216872,133.55,133.49,22.9044]
[1725308690238,7.4893,133.53,133.49,22.9044]
[1725308690413,7.4893,133.53,133.46,37.98656872]
[1725308691229,15.08216872,133.55,133.47,50.0]
[1725308691230,7.4879,133.55,133.47,50.0]
[1725308691409,7.4879,133.55,133.47,50.12549]
[1725308691610,7.4884,133.54,133.47,0.12549]
[1725308692427,7.4884,133.54,133.47,50.12549]
[1725308692633,7.488,133.55,133.47,50.12549]
[1725308693412,7.488,133.55,133.47,0.12549]
[1725308694412,30.85196872,133.56,133.47,0.12549]
[1725308694618,45.0,133.55,133.47,0.12549]
[1725308695027,15.5161,133.59,133.48,15.08216872]
[1725308695245,7.487,133.57,133.5,15.08216872]
[1725308695916,22.56916872,133.57,133.49,0.12549]
[1725308696116,22.56916872,133.57,133.49,0.25098]
[1725308700333,22.56916872,133.57,133.51,6.2021]
[1725308701663,22.56916872,133.57,133.44,22.4201]
[1725308701664,0.12549,133.52,133.44,22.4201]
[1725308701938,7.4907,133.5,133.44,22.4201]
[1725308702332,7.4907,133.5,133.44,72.4201]
[1725308702530,7.4884,133.54,133.47,15.08216872]
[1725308702741,7.4891,133.53,133.46,50.0]
[1725308702944,7.4891,133.53,133.47,15.08216872]
[1725308705326,7.4884,133.54,133.47,15.08216872]
[1725308706646,7.489,133.53,133.47,15.08216872]
[1725308708154,16.333,133.59,133.49,22.1118]
[1725308708325,15.6786,133.62,133.53,15.08216872]
[1725308708522,7.4835,133.63,133.56,22.1118]
[1725308708848,7.4839,133.62,133.56,37.19396872]
[1725308709144,7.4839,133.62,133.56,22.1118]
[1725308710331,7.4845,133.61,133.56,22.1118]
[1725308710554,22.56666872,133.61,133.56,6.0981]
[1725308711346,7.4845,133.61,133.56,6.0981]
[1725308712947,7.484,133.62,133.56,6.0981]
[1725308713735,22.56666872,133.61,133.56,6.0981]
[1725308713931,7.4845,133.61,133.56,6.0981]
[1725308714451,15.6786,133.67,133.56,6.0981]
[1725308714653,15.08216872,133.66,133.57,65.20765872]
[1725308714950,7.4827,133.65,133.57,65.20765872]
[1725308715937,20.0,133.64,133.57,50.12549]
[1725308716636,27.4828,133.64,133.57,0.12549]
[1725308717055,20.0,133.64,133.57,50.12549]
[1725308717248,27.4828,133.64,133.57,0.12549]
[1725308717724,7.4828,133.64,133.57,0.12549]
[1725308717929,7.4828,133.64,133.57,50.12549]
[1725308719851,7.4828,133.64,133.57,0.12549]
[1725308720847,0.12549,133.64,133.53,72.5078]
[1725308721145,7.4848,133.61,133.53,72.5078]
[1725308721950,7.4848,133.61,133.53,22.5078]
[1725308722340,7.4856,133.59,133.53,22.5078]
[1725308722737,7.4863,133.58,133.53,22.5078]
[1725308730447,7.4856,133.59,133.53,22.5078]
[1725308733352,7.4856,133.59,133.53,72.5078]
[1725308734666,0.12549,133.62,133.53,72.5078]
[1725308734861,45.0,133.62,133.54,0.12549]
[1725308735067,45.0,133.62,133.54,0.25098]
[1725308735560,7.484,133.62,133.55,50.0]
[1725308736847,56.44765396,133.66,133.56,0.12549]
[1725308737052,7.4833,133.63,133.57,15.8804]
[1725308738270,22.58251271,133.64,133.58,6.3076]
[1725308739061,7.4837,133.63,133.58,6.3076]
[1725308739445,7.4855,133.6,133.58,6.3076]
[1725308739652,22.58471271,133.6,133.57,15.8804]
[1725308740080,7.4851,133.6,133.57,15.8804]
[1725308742453,37.77002652,133.62,133.57,15.8804]
[1725308742661,7.4861,133.58,133.57,15.8804]
[1725308743060,7.4858,133.59,133.57,15.8804]
[1725308748377,7.4851,133.6,133.57,15.8804]
[1725308755877,18.7072,133.64,133.57,15.8804]
[1725308756075,37.77002652,133.64,133.57,15.8804]
[1725308756383,7.4837,133.63,133.57,15.8804]
[1725308756878,17.44996569,133.66,133.54,56.3076]
[1725308756879,7.4851,133.6,133.54,21.4334]
[1725308757869,7.4867,133.57,133.54,21.4334]
[1725308758061,7.4867,133.57,133.51,6.1428]
[1725308758873,7.4874,133.56,133.51,6.1428]
[1725308759194,7.4885,133.54,133.51,6.1428]
[1725308759359,7.488,133.55,133.51,6.1428]
[1725308760174,7.4872,133.56,133.51,6.1428]
[1725308761962,7.4881,133.55,133.51,6.1428]
[1725308764164,7.4896,133.52,133.45,21.8792]
[1725308764496,15.11854985,133.53,133.45,21.8792]
[1725308764497,22.60764985,133.53,133.46,50.0]
[1725308766893,7.4895,133.52,133.46,50.0]
[1725308767192,7.4895,133.52,133.46,50.12549]
[1725308767879,7.4895,133.52,133.45,22.13018]
[1725308768078,15.11854985,133.52,133.45,21.8792]
[1725308768778,15.11854985,133.5,133.45,21.8792]
[1725308769182,7.4921,133.48,133.43,0.8788857]
[1725308769385,15.11854985,133.48,133.43,0.8788857]
[1725308769782,0.12549,133.5,133.43,0.8788857]
[1725308770089,15.24403985,133.53,133.44,50.0]
[1725308770291,7.4901,133.51,133.44,50.0]
[1725308770494,7.4896,133.52,133.44,50.0]
[1725308770696,7.4896,133.52,133.45,0.12549]
[1725308771491,7.4887,133.54,133.47,65.11854985]
[1725308771674,7.4887,133.54,133.47,15.11854985]
[1725308772173,7.4892,133.53,133.46,21.9307]
[1725308772482,15.11854985,133.52,133.46,21.9307]
[1725308772685,52.4902,133.51,133.46,21.9307]
[1725308776675,22.60804985,133.52,133.46,21.9307]
[1725308776902,7.4895,133.52,133.46,21.9307]
[1725308782895,7.4885,133.54,133.46,37.04924985]
[1725308784582,7.4889,133.53,133.46,37.04924985]
[1725308789806,7.4889,133.53,133.46,21.9307]
[1725308791712,67.60804985,133.52,133.46,21.9307]
[1725308796596,22.60804985,133.52,133.46,21.9307]
[1725308797007,7.4906,133.5,133.46,21.9307]
[1725308798988,18.718,133.57,133.46,21.9307]
[1725308799188,35.11854985,133.55,133.46,37.04924985]
[1725308800108,15.11854985,133.55,133.46,37.04924985]
[1725308800310,7.4893,133.53,133.46,37.04924985]
[1725308804819,52.4885,133.54,133.46,37.04924985]
[1725308808342,15.7541,133.61,133.51,6.6063]
[1725308808622,7.486,133.59,133.51,56.6063]
[1725308809722,15.7541,133.61,133.51,6.6063]
[1725308809723,22.60464985,133.58,133.51,6.6063]
[1725308810096,45.0,133.57,133.51,6.6063]
[1725308810503,7.4878,133.55,133.51,6.6063]
[1725308810810,15.11854985,133.56,133.51,6.6063]
[1725308811208,52.4868,133.57,133.51,6.6063]
[1725308811824,45.0,133.57,133.51,6.6063]
[1725308817019,52.4867,133.57,133.51,6.6063]
[1725308817323,15.24403985,133.56,133.51,6.6063]
[1725308817501,52.4879,133.55,133.51,6.6063]
[1725308818909,45.0,133.55,133.51,6.6063]
[1725308819216,7.4884,133.54,133.51,6.6063]
[1725308820825,7.4884,133.54,133.5,16.5837]
[1725308827525,22.60694985,133.54,133.5,16.5837]
[1725308828931,8.36694985,133.54,133.5,16.5837]
[1725308829146,15.11854985,133.52,133.48,6.0534]
[1725308829516,45.0,133.51,133.47,15.5435]
[1725308830224,7.4908,133.5,133.47,15.5435]
[1725308832034,7.4912,133.49,133.47,15.5435]
[1725308832223,7.4912,133.49,133.45,7.493]
[1725308832620,7.4919,133.48,133.44,29.1039]
[1725308834745,7.4919,133.48,133.44,7.4939]
[1725308834746,22.61044985,133.48,133.44,7.4939]
[1725308840232,22.61044985,133.48,133.42,23.0739]
[1725308840233,15.11854985,133.48,133.42,23.0739]
[1725308840541,7.4929,133.46,133.42,23.0739]
[1725308841741,7.494,133.44,133.4,14.1157]
[1725308841951,27.494,133.44,133.4,14.1157]
[1725308842449,42.61254985,133.44,133.4,6.6199]
[1725308842639,87.61254985,133.44,133.4,6.6199]
[1725308843273,20.0,133.44,133.41,7.4954]
[1725308843545,7.4938,133.45,133.41,7.4954]
[1725308844948,7.494,133.44,133.4,14.1159]
[1725308845132,67.61254985,133.44,133.4,14.1159]
[1725308845344,67.61254985,133.44,133.4,6.6199]
[1725308846037,67.73803985,133.44,133.39,15.5793]
[1725308846846,87.73803985,133.44,133.39,15.5793]
[1725308847956,87.86352985,133.44,133.39,15.5793]
[1725308848348,87.98901985,133.44,133.39,15.5793]
[1725308848558,88.11450985,133.44,133.39,15.5793]
[1725308851351,88.11450985,133.44,133.37,6.6199]
[1725308851536,88.11450985,133.44,133.35,15.9479]
[1725308851731,88.11450985,133.44,133.35,23.4465]
[1725308853240,7.4931,133.46,133.41,15.9479]
[1725308853434,15.11854985,133.5,133.41,31.06644985]
[1725308853630,15.11854985,133.5,133.41,32.56524138]
[1725308854043,7.489,133.53,133.48,7.4917]
[1725308854251,7.489,133.53,133.47,22.61074985]
[1725308855255,15.4662,133.56,133.47,15.11854985]
[1725308855560,7.4888,133.54,133.48,7.4916]
[1725308855859,27.4889,133.53,133.48,7.4916]
[1725308856058,45.0,133.52,133.48,7.4916]
[1725308856545,52.4895,133.52,133.47,22.61074985]
[1725308856749,15.24403985,133.5,133.44,15.9479]
[1725308856931,7.4922,133.48,133.44,15.9479]
[1725308857256,45.0,133.47,133.44,15.9479]
[1725308858133,52.4923,133.47,133.44,15.9479]
[1725308858342,52.4923,133.47,133.43,6.9741857]
[1725308860943,0.25098,133.46,133.43,0.8788857]
[1725308861144,7.61949,133.44,133.43,0.8788857]
[1725308861368,27.74498,133.44,133.43,0.8788857]
[1725308861657,72.99596,133.44,133.43,0.8788857]
[1725308864060,72.99596,133.44,133.3,50.0]
[1725308864061,0.12549,133.43,133.3,50.0]
[1725308864239,7.4974,133.38,133.31,22.0432]
[1725308864868,7.4979,133.37,133.32,7.5003]
[1725308867771,34.1993,133.46,133.34,15.9479]
[1725308867939,15.4662,133.46,133.37,37.83816613]
[1725308868139,7.4924,133.47,133.4,7.4961]
[1725308868341,7.4917,133.49,133.4,1.4989289]
[1725308868565,7.4917,133.49,133.42,7.4949]
[1725308868771,21.9473,133.5,133.39,53.78606613]
[1725308869753,20.0,133.49,133.39,53.78606613]
[1725308870366,7.4917,133.48,133.42,7.4951]
[1725308870554,20.0,133.47,133.42,7.4951]
[1725308871864,20.0,133.47,133.42,14.1063]
[1725308872789,45.0,133.46,133.42,14.1063]
[1725308873193,7.4941,133.44,133.39,22.5591]
[1725308873370,45.0,133.46,133.39,22.5591]
[1725308873896,52.493,133.46,133.4,7.4957]
[1725308874064,45.0,133.46,133.4,1.49891575]
[1725308874381,20.0,133.47,133.39,60.39726613]
[1725308874692,20.0,133.47,133.4,1.49877665]
[1725308874994,20.0,133.47,133.42,7.495]
[1725308875195,45.12549,133.46,133.41,7.4954]
[1725308875494,52.61839,133.46,133.39,22.5591]
[1725308879198,52.61839,133.46,133.4,7.4958]
[1725308879698,52.61839,133.46,133.41,7.4955]
[1725308879997,45.0,133.46,133.42,7.4948]
[1725308880175,27.4924,133.47,133.42,7.4948]
[1725308881594,45.12549,133.46,133.41,7.4956]
[1725308883805,27.4924,133.47,133.41,7.4956]
[1725308885902,27.4924,133.47,133.39,22.5591]
[1725308885903,27.4924,133.47,133.42,7.4951]
[1725308889873,20.0,133.47,133.42,7.4951]
[1725308890291,27.4923,133.47,133.42,7.4951]
[1725308894505,0.25098,133.46,133.39,22.5591]
[1725308894806,0.25098,133.45,133.39,22.5591]
[1725308895005,52.74488,133.45,133.39,30.0557]
[1725308895302,52.74488,133.45,133.4,7.4962]
[1725308897487,0.25098,133.44,133.38,7.497]
[1725308897706,7.4945,133.43,133.38,7.497]
[1725308899008,7.4936,133.45,133.37,50.0]
[1725308899310,7.493,133.46,133.4,7.4957]
[1725308899511,20.0,133.45,133.4,7.4957]
[1725308899813,20.0,133.45,133.41,7.4956]
[1725308900105,27.4925,133.47,133.41,7.4956]
[1725308901007,7.86967,133.46,133.4,7.496]
[1725308901206,45.0,133.45,133.4,7.496]
[1725308902693,52.4934,133.45,133.4,7.496]
[1725308903214,7.74498,133.44,133.39,7.4967]
[1725308905007,7.61949,133.44,133.39,7.4967]
[1725308906516,0.12549,133.44,133.36,22.3469]
[1725308906720,7.61969,133.44,133.38,7.4968]
[1725308907604,7.61969,133.44,133.39,7.4967]
[1725308909102,7.4942,133.44,133.39,7.4967]
[1725308909308,7.4938,133.45,133.4,7.4957]
[1725308912518,7.4941,133.44,133.39,7.4966]
[1725308914627,7.4945,133.43,133.38,7.4972]
[1725308914837,52.4945,133.43,133.38,7.4972]
[1725308915818,7.4953,133.42,133.37,7.4978]
[1725308919117,15.14391491,133.4,133.33,21.5933]
[1725308919329,7.4975,133.38,133.33,29.0933]
[1725308922109,0.25098,133.39,133.33,21.5933]
[1725308922430,0.12549,133.39,133.33,21.5933]
[1725308922734,0.25098,133.39,133.33,21.5933]
[1725308923446,7.4975,133.38,133.33,29.0933]
[1725308923624,7.4969,133.39,133.34,7.4996]
[1725308924009,7.4969,133.39,133.33,29.0933]
[1725308925139,7.4974,133.38,133.33,29.0933]
[1725308928232,65.0,133.4,133.34,7.4991]
[1725308928457,0.12549,133.39,133.34,7.4991]
[1725308928625,7.62269,133.39,133.34,7.4991]
[1725308928929,7.498,133.37,133.3,22.0473]
[1725308929116,7.498,133.37,133.32,7.5003]
[1725308929318,7.498,133.37,133.33,7.5]
[1725308933419,7.4975,133.38,133.33,7.5]
[1725308941721,7.4983,133.37,133.31,15.15635977]
[1725308942512,7.4973,133.39,133.34,7.4995]
[1725308944737,0.12549,133.39,133.33,7.5001]
[1725308944944,0.50196,133.39,133.33,7.5001]
[1725308946246,7.4982,133.37,133.32,7.5005]
[1725308946741,7.4985,133.36,133.32,7.5005]
[1725308947742,0.12549,133.35,133.29,0.8788857]
[1725308947931,45.25098,133.35,133.29,0.8788857]
[1725308949342,7.5003,133.33,133.29,8.3810857]
[1725308957869,21.7973,133.38,133.29,16.03524547]
[1725308958165,7.4988,133.36,133.31,7.5009]
[1725308958553,7.4988,133.36,133.32,1.49989434]
[1725308959845,7.4988,133.36,133.32,9.00039434]
[1725308961642,7.4992,133.35,133.31,7.501]
[1725308965749,15.2816,133.38,133.33,7.5001]
[1725308965989,27.4982,133.37,133.33,7.5001]
[1725308966563,22.7791,133.38,133.34,7.4995]
[1725308969355,7.4975,133.38,133.34,7.4995]
[1725308972874,7.4983,133.37,133.33,7.5]
[1725308973773,7.4975,133.38,133.33,7.5]
[1725308974954,7.498,133.37,133.33,7.5]
[1725308975269,7.498,133.37,133.32,7.5005]
[1725308985770,21.18045646,133.39,133.33,7.5001]
[1725308985771,7.4974,133.38,133.33,7.5001]
[1725308995292,7.497,133.39,133.34,7.4995]
[1725308995482,7.4963,133.4,133.36,7.4984]
[1725308995686,7.4963,133.4,133.35,7.4986]
[1725308996367,7.4963,133.4,133.36,7.4984]
[1725308998565,7.4959,133.41,133.36,7.4984]
[1725308999185,7.4959,133.41,133.34,21.2898]
[1725308999186,15.15635977,133.41,133.34,21.2898]
[1725308999389,15.15635977,133.39,133.34,21.2898]
[1725308999595,7.4977,133.38,133.34,21.2898]
[1725308999777,52.4977,133.38,133.34,21.2898]
[1725309000298,7.4985,133.36,133.31,30.0599]
[1725309000473,15.40733977,133.37,133.31,30.0599]
[1725309000474,7.499,133.35,133.31,30.0599]
[1725309002198,15.40733977,133.37,133.31,22.5588]
[1725309002379,45.12549,133.36,133.31,22.5588]
[1725309002697,7.4992,133.35,133.31,30.06]
[1725309004192,7.62389,133.37,133.31,30.06]
[1725309004585,7.62389,133.37,133.32,7.5006]
[1725309004899,7.4984,133.37,133.32,7.5006]
[1725309005997,7.5,133.34,133.29,8.3810857]
[1725309006297,7.5002,133.33,133.29,8.3810857]
[1725309009786,7.4998,133.34,133.3,7.5016]
[1725309009983,33.90145977,133.37,133.31,7.5011]
[1725309009984,15.15635977,133.37,133.31,7.5011]
[1725309010204,27.4988,133.36,133.31,7.5011]
[1725309010587,20.0,133.36,133.32,7.5006]
[1725309011978,27.4986,133.36,133.31,7.5011]
[1725309014800,7.4996,133.34,133.3,7.5018]
[1725309018382,35.53282977,133.33,133.29,0.8788857]
[1725309018691,7.5017,133.31,133.29,0.8788857]
[1725309018892,7.5008,133.32,133.29,0.8788857]
[1725309019094,27.5003,133.33,133.29,0.8788857]
[1725309022906,6.2449,133.41,133.31,7.5012]
[1725309022907,34.3861,133.39,133.31,7.5012]
[1725309023089,49.54245977,133.39,133.31,7.5012]
[1725309023291,7.4991,133.35,133.3,29.22655977]
[1725309023804,7.4991,133.35,133.31,7.5012]
[1725309023988,7.4991,133.35,133.3,6.5686]
[1725309024186,7.5002,133.33,133.3,6.5686]
[1725309026797,52.4998,133.34,133.3,6.5686]
[1725309027109,7.4998,133.34,133.3,6.5686]
[1725309030510,7.5002,133.33,133.3,6.5686]
[1725309037316,7.5018,133.3,133.29,0.8788857]
[1725309042009,7.62729,133.3,133.29,0.8788857]
[1725309042206,52.75278,133.3,133.29,0.8788857]
[1725309042398,52.62729,133.3,133.29,0.8788857]
[1725309043491,52.75278,133.3,133.29,0.8788857]
[1725309043896,73.00376,133.3,133.29,0.8788857]
[1725309048497,20.0,133.3,133.29,0.8788857]
[1725309048705,7.5013,133.31,133.29,0.8788857]
[1725309049623,7.5008,133.32,133.29,0.8788857]
[1725309049820,7.5008,133.32,133.29,7.5198857]
[1725309050424,7.5002,133.33,133.29,7.5198857]
[1725309051320,7.5002,133.33,133.29,15.0221857]
[1725309052499,7.5007,133.32,133.29,7.5198857]
[1725309052899,7.5013,133.31,133.29,7.5198857]
[1725309053214,7.5013,133.31,133.29,0.8788857]
[1725309055418,7.5007,133.32,133.29,0.8788857]
[1725309060826,7.4998,133.34,133.3,7.5016]
[1725309061029,7.4985,133.36,133.32,7.5003]
[1725309061220,7.498,133.37,133.33,7.5]
[1725309063435,7.62399,133.36,133.32,7.5006]
[1725309063627,52.4991,133.35,133.31,28.7634]
[1725309063810,7.5007,133.32,133.31,21.2622]
[1725309064017,7.5007,133.32,133.29,0.8788857]
[1725309064422,7.5016,133.31,133.29,0.8788857]
[1725309064629,45.0,133.31,133.29,0.8788857]
[1725309065432,7.5018,133.3,133.29,0.8788857]
[1725309067839,52.75278,133.3,133.29,0.8788857]
[1725309068931,6.4485,133.38,133.29,0.8788857]
[1725309069138,27.5,133.34,133.29,8.3808857]
[1725309069647,7.5002,133.33,133.29,8.3808857]
[1725309070420,27.4997,133.34,133.29,8.3808857]
[1725309070620,27.4997,133.34,133.3,7.5016]
[1725309071128,15.9715,133.39,133.31,7.85063427]
[1725309071444,7.4986,133.36,133.32,7.5005]
[1725309074440,7.4986,133.36,133.31,13.8515]
[1725309074634,52.4991,133.35,133.31,6.3504]
[1725309074833,52.4991,133.35,133.31,13.8516]
[1725309075736,52.4991,133.35,133.29,16.8715857]
[1725309075737,7.62619,133.33,133.29,16.8715857]
[1725309075934,7.5007,133.33,133.29,16.8715857]
[1725309076121,7.4998,133.34,133.29,24.3738857]
[1725309077945,7.4998,133.34,133.3,7.5018]
[1725309083539,52.4992,133.35,133.31,7.5011]
[1725309083934,45.0,133.35,133.32,7.5007]
[1725309084127,7.62399,133.36,133.32,7.5007]
[1725309084352,7.4985,133.36,133.32,7.5007]
[1725309090456,7.4985,133.36,133.3,15.15635977]
[1725309090457,0.12549,133.36,133.29,16.8715857]
[1725309090640,65.37647,133.36,133.29,16.8715857]
[1725309090844,7.4996,133.34,133.3,7.5014]
[1725309095969,7.4996,133.34,133.31,7.5012]
[1725309097358,7.4992,133.35,133.31,7.5012]
[1725309097564,20.0,133.34,133.31,7.5012]
[1725309102979,20.0,133.34,133.32,7.5007]
[1725309103982,20.0,133.35,133.32,7.5007]
[1725309104472,20.0,133.35,133.33,7.4997]
[1725309104674,20.0,133.36,133.33,7.4999]
[1725309104882,20.0,133.36,133.33,24.6586136]
[1725309106487,20.0,133.36,133.33,23.1588]
[1725309107076,7.498,133.37,133.33,23.1588]
[1725309109678,7.498,133.37,133.34,7.4995]
[1725309113993,7.4975,133.38,133.34,7.4995]
[1725309120009,7.4986,133.36,133.32,13.587]
[1725309120177,7.4986,133.36,133.3,16.2251]
[1725309120178,45.0,133.35,133.3,16.2251]
[1725309120505,45.0,133.35,133.29,7.1234857]
[1725309120506,0.12549,133.34,133.29,7.1234857]
[1725309120707,45.0,133.36,133.29,7.1234857]
[1725309120891,20.0,133.35,133.29,7.1234857]
[1725309121087,20.0,133.35,133.3,15.15635977]
[1725309121289,7.499,133.36,133.32,7.5007]
[1725309121698,7.4981,133.37,133.33,7.5]